Cogmind - Beta 11.1 @@@ ROGUE MODE // 2022.05.31 @ 10:35:18 Player: ChromeKnight Result: Destroyed by H-77 Assassin with Coil Gun Performance ------------- Evolutions (7) 3500 Regions Visited (20) 4000 Robots Destroyed (118) 590 Value Destroyed (5117) 5117 Prototype IDs (56) 1120 Alien Tech Used (2) 400 Bonus (5099) 5099 TOTAL SCORE: 19826 Bonus ------- High Alert Combat Kills 397 Follower Combat Kills 1050 Aligned with FarCom 300 Met Zhirov 300 Met Warlord at Base 500 MAIN.C Attacked Warlord 500 Warlord Defense Kills 30 Scanned by Researcher 500 Acquired SGEMP 2000 Friendly Fire -478 Cogmind --------- Core Integrity 0/1300 Matter 68/300 Energy 100/100 System Corruption 23% Temperature Cool (0) Movement Core (50) Location -3/Testing Parts ------- > --- POWER (1) -------- (None) > --- PROPULSION (4) --- (None) > --- UTILITY (13) ----- Experimental Coolant Injector Enhanced Optical Array Experimental Signal Interpreter System Shield Advanced System Shield > --- WEAPON (3) ------- (None) > --- INVENTORY (5) ---- SGEMP Prototype Peak State ------------ > --- POWER ------------ Micro Antimatter Reactor > --- PROPULSION ------- Combat Gravmag System Cooled Antigrav System Cooled Antigrav System Cooled Antigrav System > --- UTILITY ---------- Advanced Heat Sink Experimental Coolant Injector Enhanced Optical Array Advanced Signal Interpreter 0b10 Decoder Chip [Skirmisher] Experimental Target Analyzer Armor Integrity Analyzer Experimental Cloaking Device Heavy Armor Plating Graphene Brace Experimental Focal Shield Skeleton Box > --- WEAPON ----------- Helical Railgun Heavy Linear Accelerator > --- INVENTORY -------- Thief Drone Bay Transdimensional Reconstructor RU-N14's Throwing Claymores v3 Master Tearclaws [Rating: 150] Favorites ----------- Power Improved Ion Engine Engine Improved Ion Engine Power Core Light Nuclear Core Reactor Antimatter Reactor Propulsion Armored Leg Treads Light Treads Leg Armored Leg Wheel Compact Wheel Hover Unit Improved Gyrokinetic Inverter Flight Unit Flying Fortress v7 Utility Advanced Signal Interpreter Device Cooling System Storage Large Storage Unit Processor Advanced Signal Interpreter Hackware System Shield Protection Improved Light Armor Plating Weapon Small Laser Energy Gun Small Laser Energy Cannon Matter Neutralizer Ballistic Gun Railgun Ballistic Cannon Hardcell Cannon Launcher Advanced Concussive RPG Special Weapon RU-N14's Throwing Claymores v3 Impact Weapon Hammer Slashing Weapon Master Tearclaws Build | -11 -10 -10 -10 -9 -8 -8 -8 -6 -5 -5 -5 -5 -4 -4 -4 -4 -4 -3 -3 -3 ------- Run | Scr Mat Min Exi Min Mat Sto Rec Fac Fac Upp Upp Zhi Pro Fac Upp Upp War Pro Res Tes Slots Evolved 14 | . . . . . 4 . . 4 2 . . . . 2 . . . . 2 . Power . | . . . . . . . . . . . . . . . . . . . . . Propulsion 2 | . . . . . 2 . . . . . . . . . . . . . . . Utility 11 | . . . . . 2 . . 4 1 . . . . 2 . . . . 2 . Weapon 1 | . . . . . . . . . 1 . . . . . . . . . . . Parts Attached 254 | 8 11 6 1 3 31 16 . 29 14 17 7 8 5 27 5 3 22 . 21 20 Power 25 | 1 . 2 . . 4 . . 5 2 1 1 1 . 4 . . . . 2 2 Engine 6 | 1 . 1 . . 3 . . . . . . . . 1 . . . . . . Core 12 | . . 1 . . 1 . . 5 2 1 1 . . 1 . . . . . . Reactor 7 | . . . . . . . . . . . . 1 . 2 . . . . 2 2 Propulsion 49 | 2 4 2 . . 10 2 . 6 4 1 1 . . 6 . . 4 . 5 2 Treads 4 | 2 2 . . . . . . . . . . . . . . . . . . . Leg 25 | . . 2 . . 10 2 . 6 4 . . . . 1 . . . . . . Wheel 2 | . 2 . . . . . . . . . . . . . . . . . . . Hover 15 | . . . . . . . . . . . . . . 5 . . 4 . 5 1 Flight 3 | . . . . . . . . . . 1 1 . . . . . . . . 1 Utility 108 | 2 4 1 1 2 8 8 . 13 4 10 3 3 5 12 1 2 12 . 9 8 Device 65 | 1 1 1 1 2 4 7 . 8 2 5 2 1 4 10 . 1 6 . 5 4 Storage 8 | 1 3 . . . . . . . . 2 . 1 . . . . 1 . . . Processor 15 | . . . . . 1 . . 4 1 3 . . . . . 1 1 . 2 2 Hackware 5 | . . . . . . . . . . . . . 1 2 . . . . . 2 Protection 15 | . . . . . 3 1 . 1 1 . 1 1 . . 1 . 4 . 2 . Artifact . | . . . . . . . . . . . . . . . . . . . . . Weapon 72 | 3 3 1 . 1 9 6 . 5 4 5 2 4 . 5 4 1 6 . 5 8 Energy Gun 30 | 3 2 1 . 1 7 5 . 5 2 2 . . . . . . 1 . . 1 Energy Cannon 5 | . . . . . 1 . . . . 1 . . . 2 . . . . 1 . Ballistic Gun 16 | . . . . . . . . . 2 2 2 2 . 2 2 . 2 . 1 1 Ballistic Cannon 5 | . . . . . . . . . . . . 1 . . . . . . 3 1 Launcher 3 | . . . . . . 1 . . . . . . . 1 1 . . . . . Special Weapon 6 | . . . . . . . . . . . . . . . . . 3 . . 3 Impact Weapon 2 | . 1 . . . 1 . . . . . . . . . . . . . . . Slashing Weapon 5 | . . . . . . . . . . . . 1 . . 1 1 . . . 2 Piercing Weapon . | . . . . . . . . . . . . . . . . . . . . . Special Melee Weapon . | . . . . . . . . . . . . . . . . . . . . . Unidentified Prototypes 23 | . . . . 1 1 4 . 1 1 . . 3 . 1 . . 8 . . 3 Parts Lost 79 | . 6 1 . . 13 1 . 3 17 5 1 . 3 10 . . . 1 12 6 Power 7 | . 1 . . . 2 . . 2 . . . . . . . . . . 1 1 Propulsion 17 | . 2 1 . . 4 . . . 2 3 . . . 2 . . . . 2 1 Utility 40 | . 1 . . . 5 1 . . 10 1 1 . 3 6 . . . 1 7 4 Weapon 15 | . 2 . . . 2 . . 1 5 1 . . . 2 . . . . 2 . Highest Loss Streak 11 | . 6 1 . . 5 1 . 1 8 5 1 . 2 5 . . . 1 11 4 To Critical Strikes . | . . . . . . . . . . . . . . . . . . . . . Average Slot Usage (%) 83 | . 82 97 100 99 84 91 94 95 91 59 77 74 78 59 76 73 82 94 86 43 Engine 2 | . 8 4 . . 7 9 9 2 . . . . . . . . . . . . Core 2 | . . 7 14 13 . . . 2 5 3 5 1 . . . . . . . . Reactor 1 | . . . . . . . . . . . . 3 5 2 5 5 5 5 3 3 Leg 14 | . . 15 28 28 32 36 36 26 21 6 . . . . . . . . . . Hover 4 | . . . . . . . . . . . . . . 7 21 21 20 21 18 2 Device 15 | . 10 14 14 13 6 13 13 23 13 12 20 17 16 13 16 15 21 26 24 13 Storage 6 | . 15 14 14 14 9 9 9 6 5 3 5 5 5 5 5 5 1 . . . Processor 9 | . . . . . 5 . . 8 15 15 17 17 17 12 10 11 18 21 23 14 Protection 4 | . . . . . 5 5 9 9 9 . 4 4 4 . 4 5 7 10 3 . Energy Gun 10 | . 21 28 28 28 15 16 18 12 12 6 5 4 . . . . . . . . Ballistic Gun 2 | . . . . . . . . . 2 3 10 6 11 4 3 5 5 10 4 . Naked Turns . | . . . . . . . . . . . . . . . . . . . . . Heaviest Build 74 | 12 32 28 28 30 55 53 40 44 74 40 37 48 49 50 71 60 49 49 50 22 Greatest Support 72 | 40 40 32 20 20 69 69 61 68 72 72 50 50 50 50 48 48 50 50 71 39 Greatest Overweight (x) 22 | 1 10 1 1 1 1 1 . . 1 . 6 . . 4 22 1 . . 1 1 Average Overweight (x) . | . . . 1 1 . . . . . . . . . . 1 . . . . . Largest Inventory Capacity 15 | 8 15 15 15 15 15 15 15 15 15 15 5 5 5 5 5 5 5 5 5 5 Average Capacity 10 | 7 13 15 15 15 15 15 15 15 15 7 5 5 5 5 5 5 5 5 5 5 Most Carried 15 | 2 12 15 15 15 15 15 15 15 15 13 5 5 5 5 5 5 5 5 5 5 Average Carried 10 | 1 8 13 14 14 14 14 15 14 14 7 4 4 5 5 4 4 4 5 5 4 Final Capacity 15 | 8 15 15 15 15 15 15 15 15 15 5 5 5 5 5 5 5 5 5 5 5 Final Carried 15 | 2 11 15 14 15 15 15 15 15 13 5 5 5 5 5 5 5 5 5 5 2 Class Distribution -------------------- 68% | Mutant 7% | Scavenger-Tank 6% | Gunner 5% | Derelict-Mutant 4% | Tank Dominant Class ---------------- Mutant | -10/Materials Mutant | -10/Mines Mutant | -10/Exiles Mutant | -9/Mines Mutant | -8/Materials Mutant | -8/Storage Mutant | -8/Recycling Mutant | -6/Factory Gunner | -5/Factory Scavenger-Tank | -5/Upper Caves Scavenger-Tank | -5/Upper Caves Gladiator | -5/Zhirov Gunner | -4/Proximity Caves Mutant | -4/Factory Mutant | -4/Upper Caves Mutant | -4/Upper Caves Derelict-Mutant | -4/Warlord Derelict-Mutant | -3/Proximity Caves Mutant | -3/Research Hacker-Mutant | -3/Testing Resources | -11 -10 -10 -10 -9 -8 -8 -8 -6 -5 -5 -5 -5 -4 -4 -4 -4 -4 -3 -3 -3 ----------- Run | Scr Mat Min Exi Min Mat Sto Rec Fac Fac Upp Upp Zhi Pro Fac Upp Upp War Pro Res Tes Matter Collected 4391 | 279 81 60 . 19 273 217 32 480 399 253 51 283 307 552 246 22 267 163 297 110 Remotely 25 | . . . . . . 25 . . . . . . . . . . . . . . Salvage Created 5865 | 206 198 158 . . 494 540 181 556 1060 105 122 295 79 651 312 . 3 307 396 202 Parts 249 | 6 8 9 . . 24 19 4 23 49 5 10 1 4 44 4 . 1 15 12 11 Haulers Intercepted 2 | . . . . . 1 . . 1 . . . . . . . . . . . . Recyclers Shooed 10 | . . 1 . 2 . . 1 . . 1 . . . 4 . . . . 1 . Parts Field Recycled . | . . . . . . . . . . . . . . . . . . . . . Retrieved Matter . | . . . . . . . . . . . . . . . . . . . . . Parts Self-Destructed 57 | . . . . . . . . . . 22 13 . 3 . 4 . . 15 . . Prevented . | . . . . . . . . . . . . . . . . . . . . . Kills | -11 -10 -10 -10 -9 -8 -8 -8 -6 -5 -5 -5 -5 -4 -4 -4 -4 -4 -3 -3 -3 ------- Run | Scr Mat Min Exi Min Mat Sto Rec Fac Fac Upp Upp Zhi Pro Fac Upp Upp War Pro Res Tes Combat Hostiles Destroyed 86 | . 4 4 . . 9 8 . 13 13 2 5 . 2 9 2 . 1 4 4 6 Melee 4 | . 2 . . . . . . . . . . . . . . . 1 . 1 . Guns 57 | . 1 4 . . 9 8 . 8 13 2 5 . . 1 . . . 4 2 . Cannons 14 | . . . . . . . . . . . . . 2 7 2 . . . 1 2 AOE 4 | . . . . . . . . . . . . . . . . . . . . 4 Classes Destroyed 19 | 3 1 1 . . 4 1 . 4 . . . . 1 2 . . 1 . . 1 Worker 5 | 2 . 1 . . 1 1 . . . . . . . . . . . . . . Builder 7 | . . . . . . 2 . . 1 . . . . 2 . . . . . 2 Tunneler 7 | 2 . 1 . . 1 . . . 2 . . . . 1 . . . . . . Hauler 2 | . . . . . 1 . . 1 . . . . . . . . . . . . Recycler 10 | 1 1 . . . 1 1 2 . 1 . . . . 1 . . . . 1 1 Minesweeper 1 | . . . . . . . . . . . . . 1 . . . . . . . Operator 1 | . . . . . . . . . . . . . . 1 . . . . . . Watcher 1 | . . . . . . . . . . . . . . 1 . . . . . . Swarmer 12 | . . . . . . . . 6 . 1 5 . . . . . . . . . Saboteur 1 | . . . . . . . . . . . . . . . . . 1 . . . Grunt 25 | . 4 2 . . 5 4 . 2 3 . . . . 1 . . . 3 1 . Brawler 2 | . . . . . 1 . . . . . . . . . . . . 1 . . Duelist 2 | . . . . . 1 1 . . . . . . . . . . . . . . Sentry 14 | . . . . . 2 3 . 1 3 1 . . . 1 . . . . 3 . Hunter 9 | . . . . . . . . 1 2 . . . . 4 . . . . . 2 Programmer 16 | . . . . . . . . 2 4 . . . 2 3 2 . . . . 3 Heavy 2 | . . . . . . . . 1 1 . . . . . . . . . . . Striker 1 | . . . . . . . . . . . . . . . . . . . . 1 Assembled 2 | . . 2 . . . . . . . . . . . . . . . . . . Best Kill Streak 8 | 5 4 2 . . 3 3 2 3 8 1 2 . 1 6 2 . 1 3 3 8 Combat Bots Only 5 | . 3 2 . . 2 3 . 3 5 1 2 . 1 5 2 . 1 3 2 5 Max Kills in Single Turn 2 | 1 1 1 . . 1 2 1 1 2 1 2 . 1 1 1 . 1 1 1 2 Gunslinging . | . . . . . . . . . . . . . . . . . . . . . Exploded 1 | . . . . . . . . . . . . . . . . . . . . 1 Melee 1 | . 1 . . . . . . . . . . . . . . . 1 . 1 . Uniques/NPCs Destroyed . | . . . . . . . . . . . . . . . . . . . . . Combat | -11 -10 -10 -10 -9 -8 -8 -8 -6 -5 -5 -5 -5 -4 -4 -4 -4 -4 -3 -3 -3 -------- Run | Scr Mat Min Exi Min Mat Sto Rec Fac Fac Upp Upp Zhi Pro Fac Upp Upp War Pro Res Tes Damage Taken 15496 | . 673 196 . 43 1914 656 . 859 3290 762 372 . 403 1890 203 18 67 323 2069 1758 Core 3177 | . 178 42 . . 311 91 . 80 414 227 57 . 22 438 20 18 . . 240 1039 Absorbed by Shields . | . . . . . . . . . . . . . . . . . . . . . Redirected to Shielding 272 | . . . . . . . . 15 88 . 78 . 91 . . . . . . . Core Remaining (%) 52 | 100 . . . 12 . . 26 90 . . . . 28 . . . . 58 . . Volleys Fired 425 | 11 18 23 . 2 54 29 8 42 52 14 14 . 28 62 7 . 3 19 28 11 Largest 3 | 2 2 2 . 2 2 2 2 2 3 3 3 . 3 3 3 . 1 2 3 1 Hottest 235 | 90 90 80 . 105 160 145 121 141 235 198 164 . 135 175 135 . 30 68 134 65 Shots Fired 889 | 22 30 46 . 4 106 56 16 82 139 20 39 . 84 124 15 . 3 36 56 11 Gun 750 | 22 30 46 . 4 103 55 16 82 139 20 39 . 56 61 6 . 3 36 32 . Cannon 127 | . . . . . 3 . . . . . . . 28 63 8 . . . 24 1 Launcher 2 | . . . . . . 1 . . . . . . . . 1 . . . . . Special 10 | . . . . . . . . . . . . . . . . . . . . 10 Kinetic 362 | . . . . . . . . . 70 9 30 . 84 67 6 . 3 36 56 1 Thermal 504 | 22 30 46 . 4 106 51 9 82 69 11 9 . . 57 8 . . . . . Explosive 11 | . . . . . . . . . . . . . . . 1 . . . . 10 Electromagnetic 12 | . . . . . . 5 7 . . . . . . . . . . . . . Robot Hit Streak 28 | 8 5 10 . 3 15 9 4 28 19 5 2 . 6 14 6 . 2 5 12 10 Robot Miss Streak 10 | 1 2 2 . 3 4 3 4 3 3 2 7 . 3 10 1 . 1 3 4 . Penetration Max 1 | . . . . . . . . . 1 . 1 . . 1 . . . 1 1 . Secondary Targets 4 | . . . . . . 1 . . 2 . 1 . . . . . . . . . Max Gunslinging Chain 1 | . . . . . . 1 . . 1 . 1 . . . . . . . . . Shots Hit Robots 622 | 16 37 32 . 2 82 43 7 71 102 11 8 23 26 59 35 8 2 23 26 9 Core Hits 301 | 6 7 12 . 5 67 20 2 30 51 6 5 11 4 27 10 1 . 10 12 15 Critical Kills 7 | . . . . . . . . . 1 . 1 . . 1 . . . 2 2 . Critical Parts Destroyed 12 | . 4 . . . 1 . . . 2 . . . . . . . . 2 3 . Critical Strikes 34 | 1 4 . . . 1 1 . 4 5 . 1 . . 2 . . . 4 6 5 Burn 7 | 1 . . . . . 1 . 4 1 . . . . . . . . . . . Meltdown 1 | . . . . . . . . . . . . . . 1 . . . . . . Destroy 14 | . . . . . . . . . 4 . 1 . . . . . . 4 5 . Blast 2 | . . . . . . . . . . . . . . 1 . . . . 1 . Smash 5 | . 4 . . . 1 . . . . . . . . . . . . . . . Sever 5 | . . . . . . . . . . . . . . . . . . . . 5 Melee Attacks 98 | . 20 . . . 22 . . . . . . 23 . . 23 8 . . . 2 Impact 42 | . 20 . . . 22 . . . . . . . . . . . . . . . Slashing 56 | . . . . . . . . . . . . 23 . . 23 8 . . . 2 Piercing . | . . . . . . . . . . . . . . . . . . . . . Sneak Attacks . | . . . . . . . . . . . . . . . . . . . . . Combat Hostiles . | . . . . . . . . . . . . . . . . . . . . . Follow-up Attacks . | . . . . . . . . . . . . . . . . . . . . . Damage Inflicted 17678 | 201 632 361 . 36 1393 1052 164 1506 2410 310 221 409 959 2140 687 23 26 534 1688 2926 Guns 10157 | 201 240 361 . 36 1350 1022 164 1500 2410 267 221 . 534 737 87 . 26 534 467 . Cannons 2418 | . . . . . . . . . . . . . 425 1186 314 . . . 493 . Explosions 2696 | . . . . . . 30 . . . . . . . 217 59 . . . . 2390 Melee 1090 | . 392 . . . 39 . . . . . . 409 . . 227 23 . . . . Ramming 799 | . . . . . 4 . . 6 . 43 . . . . . . . . 728 18 Kinetic 5160 | . . . . . . . . . 1412 151 194 . 959 837 87 . 26 534 960 . Thermal 7529 | 201 240 361 . 36 1350 1022 85 1500 998 116 27 . . 1303 290 . . . . . Explosive 2449 | . . . . . . . . . . . . . . . 59 . . . . 2390 Electromagnetic 109 | . . . . . . 30 79 . . . . . . . . . . . . . Impact 455 | . 392 . . . 39 . . . . . . . . . 24 . . . . . Slashing 1177 | . . . . . . . . . . . . 409 . . 227 23 . . . 518 Piercing . | . . . . . . . . . . . . . . . . . . . . . Highest Corruption 23 | . . . . . 13 15 15 . 2 5 5 5 11 4 5 5 5 . 20 23 Average Corruption 7 | . . . . . 8 13 15 . 1 4 5 5 7 3 4 5 5 . 3 21 Corruption Purged . | . . . . . . . . . . . . . . . . . . . . . Corruption Blocked . | . . . . . . . . . . . . . . . . . . . . . Effects 189 | . . . . . 15 43 9 . 4 18 10 9 15 9 14 16 1 . 4 22 Message Errors 39 | . . . . . 5 7 . . 1 5 2 3 3 1 1 6 1 . 1 3 Matter Fused 39 | . . . . . 4 7 1 . . 3 3 1 2 3 7 4 . . 2 2 Heat Flow Errors 24 | . . . . . 2 7 . . 2 2 1 1 . 2 3 1 . . . 3 Energy Discharges 26 | . . . . . 2 3 2 . . 2 1 1 3 1 2 5 . . . 4 Parts Rejected 2 | . . . . . . 1 1 . . . . . . . . . . . . . Data Loss (minor) 18 | . . . . . 1 4 2 . . 3 . 3 3 . . . . . . 2 Data Loss (major) 13 | . . . . . 1 5 1 . . 2 . . . 1 . . . . . 3 Misfires 12 | . . . . . . 4 1 . 1 . 2 . 2 1 1 . . . . . Alerts 2 | . . . . . . . . . . 1 1 . . . . . . . . . Misdirections 7 | . . . . . . 1 . . . . . . . . . . . . 1 5 Weapon Failures 7 | . . . . . . 4 1 . . . . . 2 . . . . . . . Overload Shots . | . . . . . . . . . . . . . . . . . . . . . Overflow Damage 427 | . 102 . . . 20 . . . . . . 23 97 88 11 . . . 8 78 Projectiles 147 | . . . . . . . . . . . . . 97 31 11 . . . 8 . Explosions 135 | . . . . . . . . . . . . . . 57 . . . . . 78 Melee 145 | . 102 . . . 20 . . . . . . 23 . . . . . . . . Knockbacks 20 | . 2 . . . . . . . . . . . 4 2 1 . . . 10 1 Impact 9 | . 2 . . . . . . . . . . . . . 1 . . . 5 1 Kinetic 9 | . . . . . . . . . . . . . 4 2 . . . . 3 . Secondary 2 | . . . . . . . . . . . . . . . . . . . 2 . Self-Inflicted Damage 581 | . . . . . . 21 . . . . . . . 154 41 . . . 356 9 Shots 4 | . . . . . . 1 . . . . . . . 2 1 . . . . . Rammed 26 | . . . . . . . . . . . . . . . . . . . 25 1 Targets Rammed 55 | . . . . . 1 . . 1 . 27 . . . . . . . . 25 1 Kicked 29 | . . . . . 1 . . 1 . 27 . . . . . . . . . . Crushed . | . . . . . . . . . . . . . . . . . . . . . Highest Temperature 441 | 160 30 9 . 21 265 401 . 6 441 142 158 151 54 207 299 250 . . . 133 Average Temperature 83 | 79 10 3 . 14 72 112 . 3 134 51 45 87 23 53 131 129 . . . 67 Received Heat Transfer 2249 | . 387 78 . 12 432 297 . 99 306 27 18 . 30 63 . . 29 81 204 186 Effects 8 | . . . . . . 4 . . 1 . . . . . 3 . . . . . Shutdowns 1 | . . . . . . . . . 1 . . . . . . . . . . . Interference 5 | . . . . . . 2 . . . . . . . . 3 . . . . . Short Circuit 1 | . . . . . . 1 . . . . . . . . . . . . . . Damage (minor) 1 | . . . . . . 1 . . . . . . . . . . . . . . Siege Activations . | . . . . . . . . . . . . . . . . . . . . . Robots Corrupted . | . . . . . . . . . . . . . . . . . . . . . Combat Hostiles . | . . . . . . . . . . . . . . . . . . . . . Parts Fried . | . . . . . . . . . . . . . . . . . . . . . Impact Corruptions 5 | . 4 . . . 1 . . . . . . . . . . . . . . . Robots Melted 6 | . . . . . . . . 5 . . . . . 1 . . . . . . Combat Hostiles 6 | . . . . . . . . 5 . . . . . 1 . . . . . . Parts Melted 25 | 1 . . . . 4 4 . 9 5 . . . . 2 . . . . . . Heat Transferred 13886 | 619 585 825 . 40 2522 2027 185 3616 1800 185 37 . . 1186 259 . . . . . Parts Sabotaged 4 | . . . . . . . . . . . . . . . . . 4 . . . Parts Stolen . | . . . . . . . . . . . . . . . . . . . . . Parts Stripped . | . . . . . . . . . . . . . . . . . . . . . Power Chain Reactions . | . . . . . . . . . . . . . . . . . . . . . Missiles Intercepted . | . . . . . . . . . . . . . . . . . . . . . Alert | -11 -10 -10 -10 -9 -8 -8 -8 -6 -5 -5 -5 -5 -4 -4 -4 -4 -4 -3 -3 -3 ------- Run | Scr Mat Min Exi Min Mat Sto Rec Fac Fac Upp Upp Zhi Pro Fac Upp Upp War Pro Res Tes Peak Influence 1013 | 25 55 79 . . 210 651 270 1013 407 . . . . 631 . . . . 486 544 Initial 1013 | . 16 5 . . . 56 201 1013 284 . . . . . . . . . 104 261 Average 274 | 8 21 18 . . 54 236 243 676 276 . . . . 364 . . . . 289 359 Maximum Alert Level 3 | . . . . . 1 2 1 3 2 . . . . 2 . . . . 2 2 Low Security (%) 46 | 100 100 100 . 100 96 56 . . 14 . . . . 22 . . . . 15 . Level 1 20 | . . . . . 3 10 100 . 80 . . . . 16 . . . . 73 67 Level 2 27 | . . . . . . 33 . 76 5 . . . . 60 . . . . 10 32 Level 3 4 | . . . . . . . . 23 . . . . . . . . . . . . Level 4 . | . . . . . . . . . . . . . . . . . . . . . Level 5 . | . . . . . . . . . . . . . . . . . . . . . High Security . | . . . . . . . . . . . . . . . . . . . . . Max Security . | . . . . . . . . . . . . . . . . . . . . . Squads Dispatched 29 | . . 1 . . 2 4 . 4 8 . 1 . . 3 . . . . 3 3 Investigation 1 | . . 1 . . . . . . . . . . . . . . . . . . Extermination 8 | . . . . . . . . 2 2 . . . . 2 . . . . 1 1 Reinforcement 13 | . . . . . . 3 . 1 4 . . . . 1 . . . . 2 2 Assault 2 | . . . . . . . . 1 . . 1 . . . . . . . . . Garrison 5 | . . . . . 2 1 . . 2 . . . . . . . . . . . Intercept . | . . . . . . . . . . . . . . . . . . . . . Searches Triggered 3 | . . . . . . . . 3 . . . . . . . . . . . . Construction Impeded 2 | . . . . . . 1 . . 1 . . . . . . . . . . . Haulers Reinforced 1 | . . . . . . . . . . . . . . . . . . . 1 . Active Scanning Responses . | . . . . . . . . . . . . . . . . . . . . . Cargo Convoy Interrupts . | . . . . . . . . . . . . . . . . . . . . . Stealth | -11 -10 -10 -10 -9 -8 -8 -8 -6 -5 -5 -5 -5 -4 -4 -4 -4 -4 -3 -3 -3 --------- Run | Scr Mat Min Exi Min Mat Sto Rec Fac Fac Upp Upp Zhi Pro Fac Upp Upp War Pro Res Tes Distress Signals 12 | . 1 . . . 1 2 . 1 . . . . . 2 . . . . 4 1 Communications Jammed . | . . . . . . . . . . . . . . . . . . . . . Distress Signals . | . . . . . . . . . . . . . . . . . . . . . Times Spotted 296 | . 10 8 . 2 24 21 10 24 20 17 28 . 10 14 2 4 12 11 52 27 Peak Tracking Total 21 | . 4 3 . 2 6 6 5 4 7 7 21 . 4 6 2 4 3 4 20 9 Tactical Retreats 38 | . . 1 . . . 3 . 5 1 3 8 . 1 1 . 2 3 2 6 2 Traps | -11 -10 -10 -10 -9 -8 -8 -8 -6 -5 -5 -5 -5 -4 -4 -4 -4 -4 -3 -3 -3 ------- Run | Scr Mat Min Exi Min Mat Sto Rec Fac Fac Upp Upp Zhi Pro Fac Upp Upp War Pro Res Tes Traps Triggered 11 | . 1 . . . . 2 . . 1 . . . . . . . . . 4 3 Indirectly 1 | . . . . . . 1 . . . . . . . . . . . . . . Trap Hack Attempts . | . . . . . . . . . . . . . . . . . . . . . Triggered . | . . . . . . . . . . . . . . . . . . . . . Disarmed . | . . . . . . . . . . . . . . . . . . . . . Reprogrammed . | . . . . . . . . . . . . . . . . . . . . . Reused . | . . . . . . . . . . . . . . . . . . . . . Traps Extracted . | . . . . . . . . . . . . . . . . . . . . . Installed 7 | . . . . . . . . . . . . . 7 . . . . . . . Triggered 11 | . . . . . . . . . . . 1 . . . . . 10 . . . Time Bombs Activated 1 | . . . . . . . . . . . . . . . . . 1 . . . Exploded 1 | . . . . . . . . . . . . . . . . . 1 . . . Machines | -11 -10 -10 -10 -9 -8 -8 -8 -6 -5 -5 -5 -5 -4 -4 -4 -4 -4 -3 -3 -3 ---------- Run | Scr Mat Min Exi Min Mat Sto Rec Fac Fac Upp Upp Zhi Pro Fac Upp Upp War Pro Res Tes Machines Disabled 23 | . . . . . 1 6 . . . 1 . . . 11 . . . . 1 3 Max in Single Turn 3 | . . . . . 1 1 . . . 1 . . . 3 . . . . 1 1 Garrison Access 2 | . . . . . 1 . . 1 . . . . . . . . . . . . Machines Sabotaged . | . . . . . . . . . . . . . . . . . . . . . Garrisons Compromised . | . . . . . . . . . . . . . . . . . . . . . Overloaded Fab Kills . | . . . . . . . . . . . . . . . . . . . . . Hacking | -11 -10 -10 -10 -9 -8 -8 -8 -6 -5 -5 -5 -5 -4 -4 -4 -4 -4 -3 -3 -3 --------- Run | Scr Mat Min Exi Min Mat Sto Rec Fac Fac Upp Upp Zhi Pro Fac Upp Upp War Pro Res Tes Machines Accessed 21 | . . 1 1 1 2 1 . 2 . 2 . 4 . 2 . . 1 . 2 2 Terminals 5 | . . . . . . 1 . . . 1 . . . 1 . . . . 1 1 Fabricators 2 | . . . . . . . . 1 . . . . . . . . . . . 1 Repair Stations . | . . . . . . . . . . . . . . . . . . . . . Recycling Units 1 | . . . . . 1 . . . . . . . . . . . . . . . Scanalyzers 1 | . . . . . . . . . . . . . . 1 . . . . . . Garrison Access 3 | . . . . . 1 . . 1 . . . . . . . . . . 1 . Total Hacks 50 | . . 1 1 1 4 2 . 5 . 4 . 17 . 6 . . 2 . 2 5 Successful 34 | . . 1 1 1 2 . . 2 . 4 . 17 . 4 . . 2 . . . Failed 16 | . . . . . 2 2 . 3 . . . . . 2 . . . . 2 5 Catastrophic 4 | . . . . . 1 . . . . . . . . . . . . . 1 2 Database Lockouts . | . . . . . . . . . . . . . . . . . . . . . Manual 10 | . . . 1 . . . . 3 . . . . . 4 . . . . 1 1 Terminals 14 | . . . . . . 2 . . . 3 . . . 4 . . . . 1 4 Fabricators 5 | . . . . . . . . 4 . . . . . . . . . . . 1 Repair Stations . | . . . . . . . . . . . . . . . . . . . . . Recycling Units 1 | . . . . . 1 . . . . . . . . . . . . . . . Scanalyzers 2 | . . . . . . . . . . . . . . 2 . . . . . . Garrison Access 5 | . . . . . 3 . . 1 . . . . . . . . . . 1 . Terminal Hacks 26 | . . 1 1 1 . . . . . 4 . 17 . . . . 2 . . . Record 10 | . . . . . . . . . . 3 . 5 . . . . 2 . . . Part Schematic 4 | . . . . . . . . . . . . 4 . . . . . . . . Robot Analysis 4 | . . . . . . . . . . . . 4 . . . . . . . . Prototype ID Bank 4 | . . . . . . . . . . . . 4 . . . . . . . . Open Door 3 | . . 1 . 1 . . . . . 1 . . . . . . . . . . EX-Prototype ID Bank 1 | . . . 1 . . . . . . . . . . . . . . . . . Fabricator Hacks 1 | . . . . . . . . 1 . . . . . . . . . . . . Build 1 | . . . . . . . . 1 . . . . . . . . . . . . Repair Station Hacks . | . . . . . . . . . . . . . . . . . . . . . Recycling Unit Hacks 1 | . . . . . 1 . . . . . . . . . . . . . . . Retrieve Components 1 | . . . . . 1 . . . . . . . . . . . . . . . Scanalyzer 1 | . . . . . . . . . . . . . . 1 . . . . . . Insert Component 1 | . . . . . . . . . . . . . . 1 . . . . . . Garrison Access Hacks 2 | . . . . . 1 . . 1 . . . . . . . . . . . . Seal Access 2 | . . . . . 1 . . 1 . . . . . . . . . . . . Unauthorized Hacks 3 | . . . . . . . . . . . . . . 3 . . . . . . Terminals 3 | . . . . . . . . . . . . . . 3 . . . . . . Track 1 | . . . . . . . . . . . . . . 1 . . . . . . Botnet 1 | . . . . . . . . . . . . . . 1 . . . . . . Operators 1 | . . . . . . . . . . . . . . 1 . . . . . . Fabricators . | . . . . . . . . . . . . . . . . . . . . . Repair Stations . | . . . . . . . . . . . . . . . . . . . . . Recycling Units . | . . . . . . . . . . . . . . . . . . . . . Scanalyzers . | . . . . . . . . . . . . . . . . . . . . . Garrison Access . | . . . . . . . . . . . . . . . . . . . . . Data Cores Recovered . | . . . . . . . . . . . . . . . . . . . . . Used . | . . . . . . . . . . . . . . . . . . . . . Hacking Detections 9 | . . . . . 2 1 . 1 . . . . . 2 . . . . 1 2 Full Trace Events 1 | . . . . . . 1 . . . . . . . . . . . . . . Feedback Events . | . . . . . . . . . . . . . . . . . . . . . Feedback Blocked . | . . . . . . . . . . . . . . . . . . . . . Robot Schematics Acquired . | . . . . . . . . . . . . . . . . . . . . . Robots Built 3 | . . . . . . . . 3 . . . . . . . . . . . . Authchips . | . . . . . . . . . . . . . . . . . . . . . Time 76 | . . . . . . . . 76 . . . . . . . . . . . . Total Robot Build Rating 15 | . . . . . . . . 15 . . . . . . . . . . . . Part Schematics Acquired 4 | . . . . . . . . . . . . 4 . . . . . . . . Parts Built . | . . . . . . . . . . . . . . . . . . . . . Authchips . | . . . . . . . . . . . . . . . . . . . . . Time . | . . . . . . . . . . . . . . . . . . . . . Total Part Build Rating . | . . . . . . . . . . . . . . . . . . . . . Parts Repaired . | . . . . . . . . . . . . . . . . . . . . . Time . | . . . . . . . . . . . . . . . . . . . . . Parts Recycled . | . . . . . . . . . . . . . . . . . . . . . Recycled Matter . | . . . . . . . . . . . . . . . . . . . . . Retrieved Matter . | . . . . . . . . . . . . . . . . . . . . . Retrieved Components 9 | . . . . . 9 . . . . . . . . . . . . . . . Parts Scanalyzed . | . . . . . . . . . . . . . . . . . . . . . Part Schematics Acquired . | . . . . . . . . . . . . . . . . . . . . . Parts Damaged . | . . . . . . . . . . . . . . . . . . . . . Bothacking | -11 -10 -10 -10 -9 -8 -8 -8 -6 -5 -5 -5 -5 -4 -4 -4 -4 -4 -3 -3 -3 ------------ Run | Scr Mat Min Exi Min Mat Sto Rec Fac Fac Upp Upp Zhi Pro Fac Upp Upp War Pro Res Tes Used RIF Installer . | . . . . . . . . . . . . . . . . . . . . . Robots Hacked . | . . . . . . . . . . . . . . . . . . . . . Non-combat . | . . . . . . . . . . . . . . . . . . . . . Combat . | . . . . . . . . . . . . . . . . . . . . . Robot Hacks Applied . | . . . . . . . . . . . . . . . . . . . . . Relay Couplers Released . | . . . . . . . . . . . . . . . . . . . . . Fabnet Peak Effective % . | . . . . . . . . . . . . . . . . . . . . . Robots Rewired . | . . . . . . . . . . . . . . . . . . . . . Allies Hacked . | . . . . . . . . . . . . . . . . . . . . . Hacks Repelled . | . . . . . . . . . . . . . . . . . . . . . Allies | -11 -10 -10 -10 -9 -8 -8 -8 -6 -5 -5 -5 -5 -4 -4 -4 -4 -4 -3 -3 -3 -------- Run | Scr Mat Min Exi Min Mat Sto Rec Fac Fac Upp Upp Zhi Pro Fac Upp Upp War Pro Res Tes Total Allies 6 | . . 1 . . . 2 . 3 . . . . . . . . . . . . Largest Group 3 | . . 1 1 . . 2 2 3 . . . . . . . . . . . . Highest-Rated Group 111 | . . 31 31 . . 111 111 87 . . . . . . . . . . . . Highest-Rated Ally 100 | . . 31 31 . . 100 95 29 . . . . . . . . . . . . Total Orders 3 | . . . . . . . . . . . 1 . . . 2 . . . . . EXPLORE 1 | . . . . . . . . . . . . . . . 1 . . . . . RETURN 2 | . . . . . . . . . . . 1 . . . 1 . . . . . Ally Attacks 137 | . . 5 . . 12 27 16 20 . 25 26 . . . . . . . . 6 Total Damage 4146 | . . 83 . . 649 1020 61 249 . 1147 907 . . . . . . . . 30 Kills 45 | . . 3 . . 6 10 4 6 . 11 5 . . . . . . . . . Allies Corrupted 1 | . . . . . . . . . . . . . . . . . . . . 1 Allies Melted . | . . . . . . . . . . . . . . . . . . . . . Turrets Deployed 3 | . . . . . 1 . . . . 1 1 . . . . . . . . . Intel | -11 -10 -10 -10 -9 -8 -8 -8 -6 -5 -5 -5 -5 -4 -4 -4 -4 -4 -3 -3 -3 ------- Run | Scr Mat Min Exi Min Mat Sto Rec Fac Fac Upp Upp Zhi Pro Fac Upp Upp War Pro Res Tes Robot Analysis Total 4 | . . . . . . . . . . . . 4 . . . . . . . . Derelict Logs Recovered 9 | . . 2 . 1 . . . . . 2 1 . . . 1 2 . . . . Drone Launches 11 | . . . . . . . . . . . 5 . . . 2 . . . . 4 Drone Recoveries 6 | . . . . . . . . . . . 5 . . . . . . . . 1 Decoded 0b10 Intel 14 | . . . . . . . . . . . . . . . . . . . 14 . Patrols 6 | . . . . . . . . . . . . . . . . . . . 6 . Guards 8 | . . . . . . . . . . . . . . . . . . . 8 . Exploration | -11 -10 -10 -10 -9 -8 -8 -8 -6 -5 -5 -5 -5 -4 -4 -4 -4 -4 -3 -3 -3 ------------- Run | Scr Mat Min Exi Min Mat Sto Rec Fac Fac Upp Upp Zhi Pro Fac Upp Upp War Pro Res Tes Turns Passed 13040 | 135 451 789 437 769 1050 929 218 1790 669 866 427 288 414 760 680 463 531 312 579 483 Spaces Moved 9543 | 54 222 409 225 383 469 359 162 881 218 753 545 198 428 688 269 454 623 551 938 714 Core 46 | 4 3 . . . . . . . . . 2 . . 16 6 . . . . 15 Treads 187 | 50 137 . . . . . . . . . . . . . . . . . . . Legs 2983 | . . 149 225 383 469 359 162 881 218 131 . . . 6 . . . . . . Wheels 342 | . 82 260 . . . . . . . . . . . . . . . . . . Hover 3200 | . . . . . . . . . . . . . . 279 263 454 623 551 938 92 Flight 2785 | . . . . . . . . . . 622 543 198 428 387 . . . . . 607 Fastest Speed 30 | 50 100 100 190 190 120 120 120 120 120 50 50 50 50 50 53 53 43 43 30 45 Average Speed 86 | 154 143 132 190 190 126 120 120 120 127 63 51 50 50 60 131 95 47 43 43 51 Slowest Speed 1150 | 160 550 190 190 190 190 190 120 120 190 130 350 50 50 250 1150 110 61 43 96 125 Overloaded Moves 161 | . . . . . . . . . . . . . . . . . . . 138 23 Propulsion Burnouts . | . . . . . . . . . . . . . . . . . . . . . Robots Hopped 16 | . . . . . . . . . . . . . . 2 . . . . . 14 Cave-ins Triggered 2 | . . . . . 2 . . . . . . . . . . . . . . . Teleports 1 | . . . . . . . . . . . . . . . . . . . . 1 Exploration Rate (%) 51 | 4 36 81 60 93 29 52 52 21 5 70 66 61 63 16 64 68 87 64 41 57 Regions Visited 20 Branch Regions 14 Pre-discovered Areas 3 | . . . . . . . . . . . . 3 . . . . . . . . Known Exits Taken 13 | . . . . . 1 . . 1 1 1 1 1 1 1 1 1 1 1 1 . Unknown Exits Taken 7 | 1 1 1 1 1 . 1 1 . . . . . . . . . . . . . Scrap Searched 14 | . . 2 . 1 . . . . . 3 . . 1 . 2 2 . 3 . . Spaces Dug 57 | . . . . . 14 . . . . . . . 28 13 . . . . 2 . Terrain Destroyed 434 | . . . . . 14 6 . . 2 3 21 . 71 203 12 . 1 15 20 66 Melee 14 | . . . . . 14 . . . . . . . . . . . . . . . Projectile 217 | . . . . . . 6 . . 2 3 21 . 71 77 1 . 1 15 20 . AOE 203 | . . . . . . . . . . . . . . 126 11 . . . . 66 Terrain Rammed . | . . . . . . . . . . . . . . . . . . . . . Walls Destroyed . | . . . . . . . . . . . . . . . . . . . . . Machines Disabled . | . . . . . . . . . . . . . . . . . . . . . Actions | -11 -10 -10 -10 -9 -8 -8 -8 -6 -5 -5 -5 -5 -4 -4 -4 -4 -4 -3 -3 -3 --------- Run | Scr Mat Min Exi Min Mat Sto Rec Fac Fac Upp Upp Zhi Pro Fac Upp Upp War Pro Res Tes Total 13320 | 81 286 614 239 422 772 793 169 1525 505 1116 665 344 562 919 538 469 853 589 1055 804 Wait 2703 | 4 1 158 . 29 173 373 . 545 212 290 86 96 94 129 229 . 187 20 29 48 Move 9491 | 53 221 408 224 382 467 358 161 880 217 752 544 197 427 683 268 453 622 550 937 687 Hop 15 | . . . . . . . . . . . . . . 2 . . . . . 13 Pick Up 75 | 3 12 10 5 1 8 5 . 8 2 10 3 5 . . . . 2 . . 1 Fast Attach 176 | 7 5 2 . 2 17 11 . 12 8 10 5 7 4 27 4 1 19 . 21 14 Attach 43 | 1 4 2 1 . 4 . . 5 4 6 2 2 . . 1 2 2 . . 7 Detach 14 | 1 1 . . 1 . . . 1 . . 1 1 . . 1 2 2 . . 3 Swap 37 | . 2 2 . 1 10 5 . 12 2 1 . . 1 . . . 1 . . . Drop 168 | 1 2 9 9 4 15 12 . 19 3 6 10 13 1 16 5 3 14 . 14 12 Fire 425 | 11 18 23 . 2 54 29 8 42 52 14 14 . 28 62 7 . 3 19 28 11 Melee 98 | . 20 . . . 22 . . . . . . 23 . . 23 8 . . . 2 Ram 28 | . . . . . . . . . . . . . . . . . . . 26 2 Kick 29 | . . . . . 1 . . 1 . 27 . . . . . . . . . . Crush . | . . . . . . . . . . . . . . . . . . . . . Escape Stasis 10 | . . . . . 1 . . . 5 . . . . . . . . . . 4 Rewire . | . . . . . . . . . . . . . . . . . . . . . Trap 8 | . . . . . . . . . . . . . 7 . . . 1 . . . Miscellaneous . | . . . . . . . . . . . . . . . . . . . . . Route ------- -11/Scrapyard -10/Materials (discovered 2 exits: [*Mat] / *Min) -10/Mines (discovered 3 exits: [*Mat x2] / *Exi) -10/Exiles -9/Mines -8/Materials (discovered 2 exits: *Fac / *Sto) -8/Storage -8/Recycling -6/Factory (discovered 2 exits: *Fac x2) -5/Factory -5/Upper Caves -5/Upper Caves (discovered 2 exits: *Fac / *Zhi) -5/Zhirov -4/Proximity Caves -4/Factory (discovered 3 exits: *Res x2 / *Upp) -4/Upper Caves -4/Upper Caves (discovered 2 exits: *Res / *War) -4/Warlord -3/Proximity Caves -3/Research (discovered 3 exits: *Res x2 / *Tes) -3/Testing History --------- Turn | Location | Event 4 | -11/Scrapyard | Discovered new exit (range 16) 136 | -11/Scrapyard | Entered Materials 302 | -10/Materials | Build established: Mutant 302 | -10/Materials | Discovered new exit (range 15) 438 | -10/Materials | Core integrity fell below 50% 471 | -10/Materials | Lost 6 parts (1p2n1u2w) 582 | -10/Materials | Discovered new exit (range 6) 587 | -10/Materials | Entered Mines 789 | -10/Mines | Assembled infested the area 800 | -10/Mines | Learned Materials trap positions 808 | -10/Mines | Learned location of 1 exit from Materials 823 | -10/Mines | A weapon hastily lodged in a ceiling crevice suddenly fell to the ground 902 | -10/Mines | Core integrity fell below 20% 1177 | -10/Mines | Received a Mining Laser from a helpful Derelict 1184 | -10/Mines | Discovered new exit (range 7) 1258 | -10/Mines | Discovered new exit (range 12) 1276 | -10/Mines | Met a Derelict shopkeep closing up shop 1368 | -10/Mines | Deemed a non-threat by the Exiles lab entrance 1368 | -10/Mines | Discovered new exit (range 5) 1376 | -10/Mines | Entered Exiles 1376 | -10/Exiles | Accompanied by 1 ally 1420 | -10/Exiles | Met 8R-AWN 1456 | -10/Exiles | Met EX-HEX 1506 | -10/Exiles | Met EX-BIN 1528 | -10/Exiles | Aligned with FarCom system 1530 | -10/Exiles | Given EX-Vault access code 1587 | -10/Exiles | Opened EX-Vault 1603 | -10/Exiles | Found Skeleton Box 1606 | -10/Exiles | Found Deploy-a-Sentry 1609 | -10/Exiles | Found Deploy-a-Sentry 1612 | -10/Exiles | Found Deploy-a-Sentry 1622 | -10/Exiles | Found Flying Fortress v7 1661 | -10/Exiles | Warned to stay clear of 0b10 Research branches 1727 | -10/Exiles | Met EX-DEC 1792 | -10/Exiles | Discovered new exit (range 14) 1813 | -10/Exiles | Stole three prototypes: Skeleton Box, Deploy-a-Sentry, Flying Fortress v7 1813 | -10/Exiles | Entered Mines 2010 | -9/Mines | Discovered new exit (range 13) 2126 | -9/Mines | Learned 4 Materials zone layouts 2237 | -9/Mines | Found the Drone Emporium 2246 | -9/Mines | Found Prototype Device 2246 | -9/Mines | Identified Thief Drone Bay 2582 | -9/Mines | Entered Materials 2582 | -8/Materials | Evolved 4 slots: Propulsion x2, Utility x2 2583 | -8/Materials | Identified exit to Factory 2584 | -8/Materials | Identified exit to Storage 2585 | -8/Materials | Loaded intel: 21 trap records 2669 | -8/Materials | Garrison activated, responded to threat 2874 | -8/Materials | Garrison activated, responded to threat 3043 | -8/Materials | Build established: Scavenger-Mutant 3301 | -8/Materials | Crushed by falling debris 3302 | -8/Materials | System corruption reached 10% 3308 | -8/Materials | Crushed by falling debris 3339 | -8/Materials | Lost 4 parts (2n2u) 3357 | -8/Materials | DAS Turret deployed 3377 | -8/Materials | Core integrity fell below 50% 3423 | -8/Materials | Lost 5 parts (1p1n1u2w) 3600 | -8/Materials | Build established: Mutant 3632 | -8/Materials | Entered Storage 3655 | -8/Storage | Remotely autohacked Sealed Heavy Doors 3696 | -8/Storage | Remotely autohacked Sealed Heavy Doors 4034 | -8/Storage | Garrison activated, responded to threat 4183 | -8/Storage | Met 01-MTF 4488 | -8/Storage | Discovered new exit (range 11) 4561 | -8/Storage | Entered Recycling 4561 | -8/Recycling | Accompanied by 2 allies (01-MTF) 4566 | -8/Recycling | 01-MTF left 4594 | -8/Recycling | Spotter reported a threat 4599 | -8/Recycling | Spotter reported a threat 4602 | -8/Recycling | Spotter reported a threat 4613 | -8/Recycling | Spotter reported a threat 4615 | -8/Recycling | Spotter reported a threat 4647 | -8/Recycling | Spotter reported a threat 4652 | -8/Recycling | Spotter reported a threat 4655 | -8/Recycling | Spotter reported a threat 4655 | -8/Recycling | Spotter reported a threat 4675 | -8/Recycling | Spotter reported a threat 4685 | -8/Recycling | Spotter reported a threat 4700 | -8/Recycling | Spotter reported a threat 4732 | -8/Recycling | Spotter reported a threat 4761 | -8/Recycling | Discovered new exit (range 15) 4779 | -8/Recycling | Entered Factory 4779 | -6/Factory | Accompanied by 1 ally 4779 | -6/Factory | Evolved 4 slots: Utility x4 4781 | -6/Factory | FarCom data flow suspended 5129 | -6/Factory | Search patrols dispatched 5479 | -6/Factory | Search patrols dispatched 5829 | -6/Factory | Search patrols dispatched 5841 | -6/Factory | Fabricated G-50 Soldier? 6282 | -6/Factory | Discovered new exit (range 16) 6300 | -6/Factory | Identified exit to Factory 6326 | -6/Factory | Discovered exit to Factory (range 12) 6529 | -6/Factory | First assault squad dispatched 6569 | -6/Factory | Entered another Factory area 6569 | -5/Factory | Evolved 2 slots: Utility x1, Weapon x1 6882 | -5/Factory | Build established: Gunner 7048 | -5/Factory | Garrison activated, responded to threat 7082 | -5/Factory | Lost 4 parts (1n3u) 7090 | -5/Factory | Discovered new exit (range 16) 7237 | -5/Factory | Identified exit to Upper Caves 7238 | -5/Factory | Entered Upper Caves 7259 | -5/Upper Caves | Lost 8 parts (1n5u2w) 7488 | -5/Upper Caves | Core integrity fell below 50% 7497 | -5/Upper Caves | Build established: Mutant 7515 | -5/Upper Caves | DAS Turret deployed 7524 | -5/Upper Caves | Lost 5 parts (3n1u1w) 7611 | -5/Upper Caves | Attracted the attention of an 0b10 base 7686 | -5/Upper Caves | Learned 6 Lower Caves zone layouts 7754 | -5/Upper Caves | Learned location of 1 exit from Factory 7762 | -5/Upper Caves | Attracted the attention of an 0b10 checkpoint 7907 | -5/Upper Caves | Build established: Scavenger-Tank 7953 | -5/Upper Caves | Learned Factory non-interactive machine intel 8041 | -5/Upper Caves | Discovered new exit (range 9) 8044 | -5/Upper Caves | Identified exit to Upper Caves 8088 | -5/Upper Caves | Spotted B-75 Beast 8104 | -5/Upper Caves | Entered another Upper Caves area 8104 | -5/Upper Caves | Spotted EJ-6ZQ(f) 8104 | -5/Upper Caves | Spotted Z1-UBH(f) 8105 | -5/Upper Caves | Encountered a Master Thief 8105 | -5/Upper Caves | Encountered a Master Thief 8105 | -5/Upper Caves | Discovered new exit (range 10) 8106 | -5/Upper Caves | DAS Turret deployed 8108 | -5/Upper Caves | Spotted MT-49X(f) 8109 | -5/Upper Caves | Encountered a Master Thief 8109 | -5/Upper Caves | Allies destroyed EJ-6ZQ(f) 8111 | -5/Upper Caves | Allies destroyed Z1-UBH(f) 8119 | -5/Upper Caves | Allies destroyed MT-49X(f) 8210 | -5/Upper Caves | Attracted the attention of an 0b10 checkpoint 8409 | -5/Upper Caves | Learned Factory trap positions 8447 | -5/Upper Caves | Attracted the attention of an 0b10 outpost 8512 | -5/Upper Caves | Discovered new exit (range 22) 8530 | -5/Upper Caves | Identified exit to Zhirov 8531 | -5/Upper Caves | Entered Zhirov 8531 | -5/Zhirov | Discovered new exit (range 3) 8541 | -5/Zhirov | Met Zhirov 8552 | -5/Zhirov | Learned location of Quarantine (-2) 8552 | -5/Zhirov | Learned location of Testing (-3) 8552 | -5/Zhirov | Learned location of Command (-1) 8555 | -5/Zhirov | Zhirov requested help retrieving the SGEMP Prototype 8562 | -5/Zhirov | Found Alien Artifact 8562 | -5/Zhirov | Identified Integrated Dissipator 8562 | -5/Zhirov | Installed Integrated Dissipator, increased core heat dissipation (+20) 8571 | -5/Zhirov | Found Alien Artifact 8819 | -5/Zhirov | Identified exit to Proximity Caves 8819 | -5/Zhirov | Entered Proximity Caves 9041 | -4/Proximity Caves | System corruption reached 10% 9227 | -4/Proximity Caves | Discovered new exit (range 16) 9233 | -4/Proximity Caves | Identified exit to Factory 9233 | -4/Proximity Caves | Entered Factory 9233 | -4/Factory | Evolved 2 slots: Utility x2 9234 | -4/Factory | Identified exit to Research 9235 | -4/Factory | Loaded intel: 120 trap records 9236 | -4/Factory | Loaded intel: 180 non-interactive machine locations 9256 | -4/Factory | Identified Transdimensional Reconstructor 9506 | -4/Factory | Discovered exit to Research (range 15) 9584 | -4/Factory | Lost 5 parts (1n3u1w) 9652 | -4/Factory | Lost 3 parts (1n2u) 9869 | -4/Factory | Build established: Mutant 9985 | -4/Factory | Discovered new exit (range 5) 9988 | -4/Factory | Identified exit to Upper Caves 9993 | -4/Factory | Entered Upper Caves 10104 | -4/Upper Caves | Discovered new exit (range 93) 10514 | -4/Upper Caves | Learned 4 Research zone layouts 10672 | -4/Upper Caves | Identified exit to Upper Caves 10673 | -4/Upper Caves | Entered another Upper Caves area 10715 | -4/Upper Caves | Discovered exit to Research (range 12) 10716 | -4/Upper Caves | Learned Research terminal intel 10978 | -4/Upper Caves | Learned Research garrison access intel 11090 | -4/Upper Caves | Discovered new exit (range 10) 11094 | -4/Upper Caves | Identified exit to Warlord 11136 | -4/Upper Caves | Entered Warlord 11155 | -4/Warlord | System corruption cleaned by Quarantine Array 11196 | -4/Warlord | Remotely autohacked Sealed Heavy Doors 11204 | -4/Warlord | Visited the Vortex Lab 11210 | -4/Warlord | Found Prototype Energy Gun 11210 | -4/Warlord | Identified Vortex Rail 11224 | -4/Warlord | Warlord's base attacked by MAIN.C 11245 | -4/Warlord | Found Prototype Special Weapon 11245 | -4/Warlord | Identified RU-N14's Throwing Claymores v3 11252 | -4/Warlord | Found RU-N14's Throwing Claymores v3 11291 | -4/Warlord | Met Warlord 11303 | -4/Warlord | Remotely autohacked Sealed Heavy Doors 11315 | -4/Warlord | Found Prototype Processor 11315 | -4/Warlord | Identified Exp. Target Analyzer 11318 | -4/Warlord | Found Prototype Device 11318 | -4/Warlord | Identified Exp. Focal Shield 11331 | -4/Warlord | Found Prototype Device 11331 | -4/Warlord | Identified Exp. Cloaking Device 11415 | -4/Warlord | Remotely autohacked Sealed Heavy Doors 11424 | -4/Warlord | Opened side exit 11574 | -4/Warlord | Warlord forces counterattacked 11607 | -4/Warlord | Build established: Derelict-Mutant 11633 | -4/Warlord | Spotted Striker 11634 | -4/Warlord | Spotted B-90 Cyclops 11639 | -4/Warlord | Spotted Executioner 11639 | -4/Warlord | Spotted B-86 Titan 11656 | -4/Warlord | Discovered new exit (range 15) 11666 | -4/Warlord | Identified exit to Proximity Caves 11667 | -4/Warlord | Entered Proximity Caves 11969 | -3/Proximity Caves | Attracted the attention of an 0b10 checkpoint 11976 | -3/Proximity Caves | Discovered exit to Research (range 8) 11979 | -3/Proximity Caves | Entered Research 11979 | -3/Research | Evolved 2 slots: Utility x2 11981 | -3/Research | Loaded intel: 24 terminal locations 11982 | -3/Research | Loaded intel: 4 garrison access locations 12071 | -3/Research | Discovered new exit (range 12) 12082 | -3/Research | Identified exit to Research 12413 | -3/Research | Discovered exit to Research (range 21) 12525 | -3/Research | System corruption reached 10% 12555 | -3/Research | Discovered new exit (range 5) 12557 | -3/Research | Identified exit to Testing 12558 | -3/Research | Entered Testing 12580 | -3/Testing | Lost 11 parts (1p2n6u2w) 12752 | -3/Testing | Spotted Striker 12769 | -3/Testing | Found Prototype Processor 12769 | -3/Testing | Identified Exp. Signal Interpreter 12885 | -3/Testing | Spotted Striker 12989 | -3/Testing | Spotted Alpha 7 12998 | -3/Testing | Destroyed Striker 13007 | -3/Testing | Core integrity fell below 50% 13009 | -3/Testing | Stole the SGEMP Prototype 13010 | -3/Testing | Warped through subspace 13033 | -3/Testing | Core integrity fell below 20% 13037 | -3/Testing | Scanned by Researcher 13041 | -3/Testing | Destroyed by H-77 Assassin with Coil Gun Last Messages --------------- 13036_ Exp. Coolant Injector broken. 13036_ Destabilizing: Short circuit. 13036_ Penetrated by Slug. 13036_ Graphene Brace destroyed. 13036_ G-67 Veteran suffers critical hit (Destroy). 13036_ Penetrated by Slug. 13036_ G-67 Veteran destroyed. 13037_ C-55 Analyst calls for reinforcements. 13037_ ALERT: Hostile activity reported, dispatching reinforcements to area. 13037_ Held in stasis. 13037_ C-55 Analyst is analyzing... 13037_ ALERT: Encountered unknown unique technology, formulating response. 13037_ Held in stasis. 13038_ Penetrated by Slug. 13038_ Slug penetrates C-55 Analyst. 13040_ Penetrated by Slug. 13041_ Held in stasis. 13041_ C-55 Analyst is analyzing... 13041_ Penetrated by Slug. Map ----- +----------------------------------------------------+ | # + #??????????+ #???????? | | # # """ #??????????# #???????? | | # ######## """ #??????????# #???????? | | # # # """ #??????????# #???????? | | # # """ # #??????????# #???????? | | # # """ # """ !#??????????# #???????? | | ###### # """ # """ #??????????# #???????? | | ?????# # """ # """ #??????????# #???????? | | ?????# + """ # #??????????# #???????? | | ?????# # """ #########??????????# #???????? | | ?????# # #??????????????????# #???????? | | ###### # = #??????????????????# #???????? | | # #??????????????????# #???????? | | ########??????????????????# #???????? | | ##########???????######???# #???????? | | # #???????#! """??# #???????? | | ###### #""" ""#???????# """"??# #???????? | | # #""" ""#???????# """" ?# #???????? | | # #""" ""#???????# """ ?# #???????? | | # #""" T#???????# # #???????? | | """ # #""" ""#???????# # #???????? | | " # # ""#???????# "" "" + #???????? | | " # # "?????????# ""T"" # #???????? | | # ???????????# """ # #???????? | | #### ###/####################### #???????? | | [!!g!%=g h h@ c #???????? | | !/=%==* h c u #???????? | | #### # ###########;#;############## #???????? | | ???## ##?????# # # #???????? | | ????## ##??????# #? # #???????? | | ??######???????# #??""" """ #[ = #???????? | | ### #???????# #? """ """ # #???????? | | "" #???????# """""" #? """ """ # #???????? | | "T #???????# """""" # """ """ + #???????? | | ### #???????# """""" # """ """ # #???????? | | ??## ##???????# # # #???????? | | ???# #################### """ """ # #???????? | | ??# # #?????????# """ """ # #???????? | | #?# + #?????????# """ """ # #???????? | | #?# # #?????????# """ # #???????? | | #?# # #?????????# """ # #???????? | | #?# #? #?????????# # #???????? | | #?# #? #?????????# # #???????? | | ???# #?? #?????????######?##### #???????? | | #### #?? ! #????????????????????# #???????? | | + #??? !#????????????????????# #???????? | | # ##########????????????????????# ???????? | | # +????????????????????# ???????? | | #### ##########????????????????????# ???????? | | ####/#####??????????????????????????# ??????? | +----------------------------------------------------+ Best States ------------- Heat Dissipation 110 Coolant Potential 120 Energy Generation 23 Energy Capacity 860 Matter Stores 550 Matter Capacity 550 Sight Range 22 Robot Scan Range 18 Terrain Scan Density 10 Cloak Strength 4 Armor Coverage 750 Resistance: KI 30 Resistance: TH 20 Core Shielding 30 Propulsion Shielding 66 Weapon Cycling 20 Phase Shifting 5 Evasion (%) 72 Targeting Accuracy 16 Melee Accuracy 13 Target Analysis 10 Armor Integrity Analysis 30 Recoil Reduction 2 Matter Filtering 30 Kinecelleration 40 Offensive Hacking 14 Defensive Hacking 24 Item Schematics ----------------- Assault Drone Bay | -5/Zhirov | Free Exp. Optical Array | -5/Zhirov | Free Exp. Heat Sink | -5/Zhirov | Free Imp. Arc Thrower | -5/Zhirov | Free Robot Schematics ------------------ None Fabricated ------------ G-50 Soldier | x3 | -6/Factory | Preloaded Alien Tech Used ----------------- Integrated Dissipator Transdimensional Reconstructor Achievements -------------- None Challenges ------------ None Game ------ Seed BiomechanicalOmegaFalx Manual? 0 Play Time 01:36:58 Cumulative 296.2 hours Start 2022.05.30 @ 13:22:03 End 2022.05.31 @ 10:35:18 Sessions 3 Manual Loads 0 Difficulty Rogue Special Mode None Game No. 536 Rogue 381 Adventurer 148 Explorer 7 Win Type - Total 10 Types 8/0/1/1/0/0/0/0/0 Lore% 73 Gallery% 85 Achievement% 66 Wizard Run 0 Options --------- ASCII 0 Keyboard 0 Movement Numpad Keybinds 0 Fullscreen 1 Font 18/SmallcapsGlow Map View 76x50 Tactical HUD 1 Map Filters NONE Filters NONE Steam 1 RUN: 995b876f-d2ce-48ca-b9a1-e65b9edad9c8